bitfinex-derivatives/quotes_SOLF0:USTF0_20240911
["timestamp","ask_amount","ask_price","bid_price","bid_amount"]
[1726057799618,3.7812,132.23,131.98,27.55943125]
[1726057799826,3.7812,132.23,132.0,22.75]
[1726057800324,3.7807,132.25,132.0,22.75]
[1726057800513,3.7681653,132.32,132.0,22.75]
[1726057800718,1.0,132.36,132.0,22.75]
[1726057801420,1.0,132.36,131.98,1.0]
[1726057801626,1.0,132.36,131.56,139.92256713]
[1726057801627,7.591,132.35,131.31,139.92256713]
[1726057801828,22.79,132.32,131.24,139.92256713]
[1726057802027,1.0,132.29,131.65,7.91090382]
[1726057802227,1.0,132.29,131.6,3.799]
[1726057802429,139.97243826,132.21,131.08,11.442]
[1726057802724,7.591,132.18,131.08,11.442]
[1726057803028,7.591,132.03,131.14,7.6249]
[1726057803329,7.591,132.01,130.94,19.0913]
[1726057803531,7.591,131.99,130.94,3.74990512]
[1726057803721,7.591,131.99,130.87,57.3034]
[1726057803923,7.591,131.97,131.18,7.6226]
[1726057804122,7.5747,132.02,131.18,7.6226]
[1726057804123,7.591,131.95,131.18,7.6226]
[1726057804324,15.88952429,131.94,131.19,7.591]
[1726057804523,15.88952429,131.93,131.19,7.591]
[1726057804727,15.88952429,131.92,131.19,7.591]
[1726057805032,3.7945,131.77,131.21,7.591]
[1726057805324,3.74345351,132.03,131.21,7.591]
[1726057805632,11.3299,132.39,131.07,15.2575]
[1726057805633,15.90214359,132.02,131.33,7.591]
[1726057805929,3.71830879,132.19,131.33,11.47023182]
[1726057806128,15.9070263,132.18,131.38,7.591]
[1726057806427,15.9070263,132.17,131.38,7.591]
[1726057806630,15.9070263,132.16,131.38,19.0075]
[1726057806835,15.9070263,132.15,131.62,7.591]
[1726057807134,15.9070263,132.14,131.62,7.591]
[1726057807429,3.7752391,132.31,131.62,11.41671732]
[1726057808035,3.7752391,132.31,131.63,7.591]
[1726057808226,3.7752391,132.31,131.56,7.591]
[1726057808831,3.7752391,132.31,131.58,7.591]
[1726057809421,7.5455,132.53,131.38,7.591]
[1726057809636,4.75066632,132.29,131.22,38.1006]
[1726057809828,1.0,132.29,131.59,1.0]
[1726057810022,4.85214826,132.29,131.59,1.0]
[1726057810333,1.0,132.29,131.59,4.71431458]
[1726057810535,4.72264519,132.29,131.59,1.0]
[1726057810730,1.0,132.29,131.59,4.86085753]
[1726057811140,1.0,132.29,131.59,1.0]
[1726057811432,1.0,132.29,131.59,4.84571097]
[1726057811433,4.78777539,132.29,131.59,4.84571097]
[1726057811632,7.591,132.26,131.59,4.84571097]
[1726057812237,7.591,132.24,131.59,4.84571097]
[1726057812430,7.591,132.24,131.6,7.591]
[1726057812731,4.78777539,132.29,131.59,4.84571097]
[1726057812732,7.591,132.22,131.59,4.84571097]
[1726057812926,11.36223339,132.22,131.59,4.84571097]
[1726057813233,7.591,132.21,131.59,4.84571097]
[1726057813424,7.5622,132.23,131.59,1.0]
[1726057813731,7.5629,132.22,131.6,7.591]
[1726057813935,3.77464524,132.23,131.59,4.87245166]
[1726057814230,11.3289,132.4,131.59,4.87245166]
[1726057814231,3.7878,132.0,131.59,4.87245166]
[1726057814425,3.78639717,132.2,131.6,7.591]
[1726057814627,1.0,132.21,131.59,4.87245166]
[1726057814830,4.6999636,132.21,131.59,4.87245166]
[1726057815136,7.591,132.2,131.59,4.87245166]
[1726057815325,4.6999636,132.21,131.59,4.87245166]
[1726057816030,15.128,132.2,131.59,4.87245166]
[1726057816531,11.352,132.13,131.59,4.87245166]
[1726057816835,3.77397104,132.13,131.59,4.87245166]
[1726057817033,11.3538,132.11,131.59,4.87245166]
[1726057817244,3.74062002,132.11,131.59,4.87245166]
[1726057817528,3.6999636,132.21,131.59,4.87245166]
[1726057817728,37.8126,132.23,131.59,3.87245166]
[1726057817936,1.0,132.16,131.05,45.54]
[1726057818131,4.76563329,132.16,131.05,49.2506799]
[1726057818326,3.7983,131.63,131.05,49.2506799]
[1726057818533,7.591,132.0,131.08,7.591]
[1726057818731,7.591,131.95,131.08,7.591]
[1726057818929,7.5846,131.84,131.1,7.591]
[1726057819139,7.5846,131.84,131.09,45.54]
[1726057819338,3.75550899,131.85,131.09,45.54]
[1726057819533,7.591,131.84,131.24,11.4285]
[1726057819740,3.87508701,131.84,131.24,171.46878313]
[1726057819936,3.8023,131.5,131.24,175.28427094]
[1726057820133,3.81396936,131.84,131.24,175.28427094]
[1726057820333,88.96164591,131.89,131.24,175.28427094]
[1726057820631,7.5925,131.71,131.24,175.28427094]
[1726057821233,7.5869,131.8,131.25,7.6186]
[1726057821537,3.72248268,131.84,131.24,175.28427094]
[1726057821741,7.5875,131.79,131.5,3.802]
[1726057821940,11.34320255,131.79,131.27,7.6174]
[1726057822235,7.588,131.78,131.27,7.6174]
[1726057822431,1.0,131.84,131.25,1.0]
[1726057822732,7.5886,131.77,131.25,1.0]
[1726057822939,7.591,131.76,131.25,1.0]
[1726057823137,1.0,131.84,131.25,1.0]
[1726057823341,1.0,131.84,131.18,7.6225]
[1726057823531,1.0,131.84,131.13,11.4382]
[1726057823735,1.0,131.84,131.12,3.71844586]
[1726057823736,7.591,131.83,131.12,3.71844586]
[1726057823936,15.1834,131.71,131.1,1008.81483237]
[1726057824134,12.3776,131.84,131.1,1012.63288285]
[1726057824345,15.1706,131.83,131.12,15.2524]
[1726057824530,7.591,131.82,131.12,186.90327932]
[1726057824730,7.591,131.8,131.12,186.90327932]
[1726057825249,7.591,131.8,131.19,7.6219]
[1726057825446,7.591,131.8,131.19,11.35849258]
[1726057825742,7.591,131.82,131.12,186.90327932]
[1726057825946,7.591,131.78,131.31,3.8075]
[1726057826134,1.0,131.7,131.12,179.59841341]
[1726057826334,7.591,131.69,131.12,179.59841341]
[1726057826732,7.591,131.69,131.12,171.65087932]
[1726057827544,7.591,131.67,131.12,179.60031966]
[1726057827743,7.591,131.67,131.16,7.6237]
[1726057827931,7.94944034,131.68,131.13,1.0]
[1726057828537,7.94944034,131.68,131.15,11.4363]
[1726057828737,7.94944034,131.68,131.15,171.66488738]
[1726057828934,7.94944034,131.68,131.16,7.591]
[1726057829142,7.94944034,131.68,131.15,171.66488738]
[1726057829445,7.94944034,131.68,131.33,7.6136]
[1726057829940,7.94944034,131.68,131.24,7.6192]
[1726057830137,7.94944034,131.68,131.15,171.66488738]
[1726057830336,1.0,131.66,131.15,171.66488738]
[1726057830533,112.91525869,131.66,131.28,3.8082]
[1726057830742,112.91525869,131.66,131.15,171.66488738]
[1726057831234,7.591,131.63,131.15,171.66488738]
[1726057831439,30.381,131.62,131.15,171.66488738]
[1726057831642,7.591,131.62,131.15,171.66488738]
[1726057832633,7.591,131.62,131.32,3.8072]
[1726057832841,7.591,131.62,131.15,171.66488738]
[1726057833037,3.77315004,131.63,131.15,171.66488738]
[1726057833344,90.12525869,131.66,131.15,175.5553769]
[1726057834047,90.12525869,131.66,131.19,7.6217]
[1726057834242,90.12525869,131.66,131.15,175.5553769]
[1726057834443,89.12525869,131.66,131.15,175.5553769]
[1726057834642,89.12525869,131.66,131.16,1.0]
[1726057835642,47.49,131.58,131.5,3.802]
[1726057835945,1.0,131.62,131.46,47.49]
[1726057836148,1.0,131.62,131.4,47.49]
[1726057836149,47.49,131.61,131.48,47.49]
[1726057836742,47.49,131.56,131.44,47.49]
[1726057837045,47.49,131.57,131.44,47.49]
[1726057837235,47.49,131.59,131.46,47.49]
[1726057837435,47.49,131.57,131.44,47.49]
[1726057837745,47.49,131.54,131.41,47.49]
[1726057837940,47.49,131.55,131.41,47.49]
[1726057838542,47.49,131.59,131.47,47.49]
[1726057838736,48.49,131.62,131.47,47.49]
[1726057839147,47.49,131.57,131.45,47.49]
[1726057839344,47.49,131.59,131.47,47.49]
[1726057840051,47.49,131.53,131.39,47.49]
[1726057840255,47.49,131.55,131.42,47.49]
[1726057840550,47.49,131.59,131.48,47.49]
[1726057840750,48.49,131.62,131.5,47.49]
[1726057840951,1.0,131.62,131.5,47.49]
[1726057841147,47.49,131.61,131.49,47.49]
[1726057841345,47.49,131.61,131.46,47.49]
[1726057841346,1.0,131.62,131.53,47.49]
[1726057841547,48.49,131.62,131.5,47.49]
[1726057841752,47.49,131.6,131.48,47.49]
[1726057841953,3.7994,131.6,131.5,3.8019]
[1726057842254,47.49,131.61,131.5,47.49]
[1726057842443,1.0,131.62,131.59,3.7992]
[1726057842649,1.0,131.62,131.56,47.49]
[1726057843051,1.0,131.62,131.54,47.49]
[1726057843446,1.0,131.62,131.55,3.8003]
[1726057843652,47.49,131.61,131.49,47.49]
[1726057843848,47.49,131.59,131.47,47.49]
[1726057844055,47.49,131.56,131.44,47.49]
[1726057844358,47.49,131.54,131.42,171.45720083]
[1726057844861,47.49,131.61,131.48,47.49]
[1726057845164,1.0,131.62,131.51,47.49]
[1726057845650,1.0,131.62,131.52,47.49]
[1726057846047,47.49,131.61,131.5,47.49]
[1726057846651,47.49,131.56,131.45,47.49]
[1726057847053,47.49,131.56,131.42,218.94720083]
[1726057847257,47.49,131.54,131.42,218.94720083]
[1726057847854,47.49,131.6,131.45,47.49]
[1726057848055,47.49,131.6,131.42,171.45720083]
[1726057848056,1.0,131.62,131.52,47.49]
[1726057848449,1.0,131.62,131.48,47.49]
[1726057848649,47.49,131.61,131.48,47.49]
[1726057849052,47.49,131.56,131.46,47.49]
[1726057849251,47.49,131.56,131.43,47.49]
[1726057849461,47.49,131.59,131.47,47.49]
[1726057849658,47.49,131.53,131.42,218.94720083]
[1726057849856,47.49,131.55,131.42,218.94720083]
[1726057850060,1.0,131.6,131.47,47.49]
[1726057850256,47.49,131.59,131.47,47.49]
[1726057850862,47.49,131.59,131.42,171.45720083]
[1726057850863,47.49,131.64,131.52,47.49]
[1726057851161,47.49,131.69,131.57,47.49]
[1726057851358,3.7984,131.63,131.54,47.49]
[1726057851555,47.49,131.67,131.54,47.49]
[1726057851762,47.49,131.71,131.59,47.49]
[1726057851964,3.7957,131.72,131.63,47.49]
[1726057852161,47.49,131.74,131.63,47.49]
[1726057852557,11.3635,132.0,131.69,47.49]
[1726057852762,11.3635,132.0,131.6,47.49]
[1726057852763,47.49,131.85,131.72,47.49]
[1726057852966,3.7137948,131.92,131.72,47.49]
[1726057853264,3.7137948,131.92,131.66,47.49]
[1726057853265,7.92373782,131.95,131.78,47.49]
[1726057853461,47.49,131.89,131.78,47.49]
[1726057853663,47.49,131.91,131.78,47.49]
[1726057854068,47.49,131.89,131.76,47.49]
[1726057854268,47.49,131.94,131.8,47.49]
[1726057854567,47.49,132.07,131.8,47.49]
[1726057854568,47.49,132.02,131.9,47.49]
[1726057854770,47.49,132.0,131.88,47.49]
[1726057855356,47.49,132.02,131.9,47.49]
[1726057855762,47.49,131.97,131.85,47.49]
[1726057856065,3.7899,131.93,131.86,3.7917]
[1726057856268,3.7899,131.93,131.19,139.92256713]
[1726057856269,94.98,131.87,131.48,1.0]
[1726057856471,47.49,131.82,131.69,47.49]
[1726057856765,47.49,131.82,131.5,3.78432711]
[1726057856965,47.49,131.82,131.69,47.49]
[1726057858062,47.49,131.82,131.71,47.49]
[1726057858370,47.49,131.74,131.48,4.74431284]
[1726057858570,47.49,131.76,131.63,47.49]
[1726057858765,47.49,131.76,131.65,47.49]
[1726057858970,47.49,131.74,131.6,47.49]
[1726057859167,47.49,131.77,131.63,47.49]
[1726057859767,51.2845,131.77,131.63,47.49]
[1726057859976,47.49,131.8,131.68,47.49]
[1726057860266,47.49,131.8,131.6,51.20395765]
[1726057860267,47.49,131.83,131.7,47.49]
[1726057860465,47.49,131.8,131.68,47.49]
[1726057860668,47.49,131.73,131.62,47.49]
[1726057860867,47.49,131.73,131.53,47.49]
[1726057860868,47.49,131.73,131.6,47.49]
[1726057861067,47.49,131.71,131.48,3.74431284]
[1726057861273,47.49,131.71,131.56,47.49]
[1726057861574,47.49,131.66,131.54,47.49]
[1726057861765,47.49,131.66,131.51,47.49]
[1726057861960,47.49,131.71,131.56,47.49]
[1726057862162,47.49,131.71,131.59,47.49]
[1726057862369,47.49,131.68,131.54,47.49]
[1726057862570,47.49,131.63,131.51,47.49]
[1726057862774,47.49,131.67,131.47,47.49]
[1726057862775,47.49,131.58,131.47,47.49]
[1726057862973,47.49,131.53,131.41,47.49]
[1726057863472,47.49,131.67,131.46,47.49]
[1726057863668,47.49,131.59,131.46,47.49]
[1726057863876,47.49,131.64,131.51,47.49]
[1726057864174,47.49,131.65,131.51,47.49]
[1726057864379,47.49,131.65,131.54,47.49]
[1726057864677,47.49,131.67,131.54,47.49]
[1726057864874,1.0,131.7,131.54,47.49]
[1726057864875,47.49,131.65,131.54,47.49]
[1726057865074,47.49,131.67,131.54,47.49]
[1726057865272,48.49,131.7,131.53,47.49]
[1726057865474,1.0,131.7,131.58,47.49]
[1726057866376,47.49,131.68,131.56,47.49]
[1726057866681,1.0,131.7,131.59,47.49]
[1726057866974,1.0,131.7,131.62,47.49]
[1726057867173,51.2852,131.74,131.62,51.2884]
[1726057867372,47.49,131.74,131.62,47.49]
[1726057867675,47.49,131.74,131.6,47.49]
[1726057867676,3.7957,131.72,131.6,47.49]
[1726057867879,47.49,131.77,131.65,47.49]
[1726057868076,47.49,131.77,131.63,47.49]
[1726057868572,47.49,131.81,131.68,47.49]
[1726057868767,51.2831,131.81,131.71,47.49]
[1726057868980,47.49,131.89,131.76,47.49]
[1726057869382,3.791,131.89,131.8,3.7933]
[1726057869584,47.49,131.93,131.81,47.49]
[1726057869887,47.49,131.91,131.78,47.49]
[1726057870190,47.49,131.88,131.76,47.49]
[1726057870484,47.49,131.88,131.66,47.49]
[1726057870485,3.7926,131.83,131.74,47.49]
[1726057870684,47.49,131.88,131.76,47.49]
[1726057870989,47.49,131.91,131.78,47.49]
[1726057871389,47.49,131.89,131.78,47.49]
[1726057871581,47.49,131.89,131.76,47.49]
[1726057871779,47.49,131.94,131.82,47.49]
[1726057871979,3.7917,131.86,131.79,47.49]
[1726057872185,47.49,131.9,131.79,47.49]
[1726057872380,47.49,131.93,131.79,47.49]
[1726057872586,3.7896,131.94,131.85,3.7919]
[1726057872886,47.49,131.93,131.81,47.49]
[1726057873590,47.49,131.94,131.81,47.49]
[1726057874092,7.91978562,132.04,131.86,3.7915]
[1726057874391,47.49,132.03,131.9,47.49]
[1726057874587,47.49,132.07,131.92,47.49]
[1726057874888,47.49,132.02,131.9,47.49]
[1726057875086,3.7883,131.98,131.91,3.7902]
[1726057875281,47.49,132.04,131.92,47.49]
[1726057876195,3.7883,131.98,131.92,47.49]
[1726057876390,47.49,131.99,131.87,47.49]
[1726057876689,47.49,132.07,131.73,47.49]
[1726057876690,47.49,131.95,131.82,47.49]
[1726057877095,47.49,131.97,131.85,47.49]
[1726057877490,1.0,131.98,131.85,47.49]
[1726057877696,1.0,131.98,131.87,47.49]
[1726057877885,47.49,131.92,131.77,47.49]
[1726057878091,47.49,131.89,131.77,47.49]
[1726057879087,47.49,131.93,131.75,47.49]
[1726057879088,47.49,131.87,131.75,47.49]
[1726057879287,3.7925,131.84,131.75,51.2846]
[1726057879491,3.7925,131.84,131.75,47.49]
[1726057879787,3.7922,131.84,131.76,3.7943]
[1726057879992,47.49,131.89,131.77,47.49]
[1726057880394,47.49,131.87,131.75,47.49]
[1726057880592,47.49,131.84,131.73,47.49]
[1726057880796,47.49,131.82,131.71,47.49]
[1726057880999,47.49,131.85,131.73,47.49]
[1726057881198,47.49,131.87,131.75,47.49]
[1726057881800,47.49,131.87,131.66,47.49]
[1726057881801,47.49,131.85,131.66,47.49]
[1726057881998,47.49,131.87,131.75,47.49]
[1726057882299,1.0,131.88,131.8,47.49]
[1726057883000,4.7911,131.88,131.81,3.7931]
[1726057883202,4.7911,131.88,131.82,47.49]
[1726057883398,1.0,131.88,131.79,47.49]
[1726057883705,1.0,131.88,131.77,47.49]
[1726057883996,1.0,131.88,131.79,47.49]
[1726057884696,1.0,131.88,131.82,47.49]
[1726057884898,47.49,131.96,131.84,47.49]
[1726057885093,47.49,131.91,131.79,47.49]
[1726057885301,1.0,131.87,131.79,47.49]
[1726057885703,1.0,131.87,131.81,47.49]
[1726057885898,1.0,131.87,131.84,47.49]
[1726057886100,47.49,131.99,131.86,47.49]
[1726057886297,3.7897,131.93,131.86,47.49]
[1726057886493,47.49,131.99,131.86,47.49]
[1726057886695,47.49,131.99,131.88,47.49]
[1726057886894,47.49,131.99,131.86,47.49]
[1726057887102,47.49,131.97,131.86,47.49]
[1726057887301,3.7903,131.91,131.86,47.49]
[1726057887504,47.49,131.95,131.84,47.49]
[1726057887701,47.49,131.92,131.81,47.49]
[1726057887903,3.7911,131.89,131.82,3.7926]
[1726057888205,47.49,131.94,131.81,47.49]
[1726057888802,3.7903,131.91,131.86,47.49]
[1726057889196,48.8416,131.96,131.86,47.49]
[1726057889197,1.3516,131.96,131.86,47.49]
[1726057889595,48.8416,131.96,131.84,47.49]
[1726057890402,47.49,132.01,131.89,47.49]
[1726057890608,47.49,131.95,131.82,47.49]
[1726057890809,47.49,131.93,131.82,47.49]
[1726057891114,47.49,131.93,131.79,47.49]
[1726057891404,47.49,131.91,131.79,47.49]
[1726057891608,3.7911,131.88,131.82,3.7928]
[1726057891803,3.7911,131.88,131.79,47.49]
[1726057892003,47.49,131.91,131.79,47.49]
[1726057892405,47.49,131.93,131.79,47.49]
[1726057892601,51.2788,131.96,131.89,3.7907]
[1726057892814,1.3655,131.99,131.87,47.49]
[1726057893205,1.3655,131.99,131.87,51.2812]
[1726057893405,1.3655,131.99,131.89,47.49]
[1726057893708,3.7866,132.04,131.94,47.49]
[1726057893907,1.3516,132.05,131.96,47.49]
[1726057894209,1.3516,132.05,131.94,47.49]
[1726057894610,48.8555,132.1,131.98,47.49]
[1726057894816,1.3655,132.1,132.0,47.49]
[1726057895611,3.7856,132.08,132.02,47.49]
[1726057895806,47.49,132.09,131.87,7.93194146]
[1726057896110,3.7868,132.03,131.97,47.49]
[1726057896307,47.49,132.09,131.97,47.49]
[1726057896609,47.49,132.05,131.92,47.49]
[1726057897008,48.8555,132.1,131.97,47.49]
[1726057897210,1.3655,132.1,131.99,47.49]
[1726057897511,1.2874,132.13,131.99,47.49]
[1726057897715,47.49,132.09,131.97,47.49]
[1726057897907,47.49,132.07,131.95,47.49]
[1726057898306,47.49,132.07,131.97,3.7885]
[1726057898502,47.49,132.09,131.97,47.49]
[1726057898708,47.49,132.12,131.99,47.49]
[1726057898910,48.8199,132.16,132.04,47.49]
[1726057899117,1.3299,132.16,132.06,47.49]
[1726057899308,1.2955,132.19,132.09,47.49]
[1726057899618,47.49,132.23,132.11,47.49]
[1726057899808,1.3291,132.25,132.14,47.49]
[1726057899809,3.7819,132.21,132.14,47.49]
[1726057900002,47.49,132.24,132.11,47.49]
[1726057900912,1.3291,132.25,132.14,3.7834]
[1726057901211,1.3291,132.25,132.11,47.49]
[1726057901212,47.49,132.23,132.11,47.49]
[1726057902113,47.49,132.21,132.09,47.49]
[1726057902911,3.7833,132.15,132.07,3.7855]
[1726057903217,47.49,132.23,132.11,47.49]
[1726057903416,48.8191,132.25,132.13,47.49]
[1726057904317,1.3291,132.25,132.16,47.49]
[1726057904517,47.49,132.3,132.18,47.49]
[1726057905110,1.3394,132.31,132.2,47.49]
[1726057905912,47.49,132.3,132.18,47.49]
[1726057906415,47.49,132.3,132.14,2.7425]
[1726057906416,1.3394,132.31,132.22,47.49]
[1726057906817,1.3394,132.31,132.19,47.49]
[1726057907425,1.3744,132.34,132.24,47.49]
[1726057908721,1.3744,132.34,132.22,47.49]
[1726057909813,1.3744,132.34,132.24,3.7806]
[1726057910016,1.3744,132.34,132.22,47.49]
[1726057910214,3.7796,132.29,132.22,47.49]
[1726057910421,1.3744,132.34,132.22,47.49]
[1726057910615,47.49,132.32,132.2,47.49]
[1726057910816,3.7801,132.27,132.21,3.7814]
[1726057911022,3.7801,132.27,132.2,47.49]
[1726057911321,3.7799,132.28,132.22,3.7813]
[1726057911513,47.49,132.32,132.22,3.7813]
[1726057911915,47.49,132.32,132.23,3.781]
[1726057912114,1.3744,132.34,132.24,47.49]
[1726057912324,47.49,132.35,132.24,47.49]
[1726057912526,47.49,132.33,132.14,2.7425]
[1726057912716,47.49,132.33,132.19,47.49]
[1726057912916,47.49,132.33,132.21,47.49]
[1726057914123,3.78,132.27,132.22,3.7812]
[1726057914322,47.49,132.33,132.21,47.49]
[1726057914716,47.49,132.3,132.19,47.49]
[1726057914922,2.6891,132.37,132.21,47.49]
[1726057915221,2.6891,132.37,132.23,3.781]
[1726057915222,3.7796,132.29,132.23,3.781]
[1726057915525,47.49,132.35,132.23,51.271]
[1726057915721,3.7803,132.26,132.21,51.2714]
[1726057915927,47.49,132.33,132.21,47.49]
[1726057916231,3.7806,132.25,132.2,3.7819]
[1726057916414,47.49,132.28,132.16,47.49]
[1726057916822,3.7818,132.21,132.16,47.49]
[1726057917115,47.49,132.28,132.16,47.49]
[1726057917323,47.49,132.28,132.14,2.7425]
[1726057917324,47.49,132.31,132.19,47.49]
[1726057918726,47.49,132.33,132.21,47.49]
[1726057918925,2.6891,132.37,132.19,47.49]
[1726057919120,47.49,132.29,132.17,47.49]
[1726057919323,47.49,132.27,132.17,47.49]
[1726057919724,47.49,132.25,132.14,47.49]
[1726057919930,47.49,132.25,132.06,47.49]
[1726057919931,47.49,132.25,132.12,47.49]
[1726057920226,47.49,132.22,132.1,47.49]
[1726057920416,47.49,132.18,132.06,47.49]
[1726057920621,47.49,132.15,132.04,47.49]
[1726057921021,47.49,132.13,132.02,47.49]
[1726057921223,2.7615,132.17,132.02,47.49]
[1726057921224,47.49,132.15,132.02,47.49]
[1726057921522,50.2515,132.17,132.04,47.49]
[1726057921724,50.2515,132.17,132.06,47.49]
[1726057921926,2.7615,132.17,132.06,47.49]
[1726057922117,2.7615,132.17,132.08,47.49]
[1726057922524,2.7615,132.17,132.06,47.49]
[1726057922727,50.2515,132.17,132.06,47.49]
[1726057922923,47.49,132.15,132.01,47.49]
[1726057923131,47.49,132.1,131.96,47.49]
[1726057923622,3.7865,132.04,131.97,3.7885]
[1726057924027,47.49,132.08,131.96,47.49]
[1726057924219,47.49,132.12,131.99,47.49]
[1726057924627,47.49,132.08,131.97,47.49]
[1726057924822,1.3388,132.14,131.99,47.49]
[1726057925025,47.49,132.12,131.99,47.49]
[1726057925926,47.49,132.12,131.96,47.49]
[1726057925927,47.49,132.07,131.96,47.49]
[1726057926627,47.49,132.12,131.96,47.49]
[1726057926928,47.49,132.12,132.01,47.49]
[1726057927318,47.49,132.1,131.87,2.8097]
[1726057927522,1.3388,132.14,131.87,2.8097]
[1726057927523,47.49,132.05,131.94,47.49]
[1726057927726,47.49,132.08,131.96,47.49]
[1726057927929,47.49,132.1,131.99,47.49]
[1726057928523,47.49,132.08,131.97,47.49]
[1726057928920,3.7871,132.02,131.97,47.49]
[1726057929125,47.49,132.08,131.97,47.49]
[1726057929526,47.49,132.03,131.92,47.49]
[1726057929734,47.49,132.05,131.94,47.49]
[1726057929933,50.207,132.07,131.96,47.49]
[1726057930521,50.207,132.07,131.94,47.49]
[1726057930734,47.49,132.05,131.94,47.49]
[1726057931231,2.717,132.07,131.94,47.49]
[1726057931530,2.717,132.07,131.98,47.49]
[1726057931832,2.717,132.07,131.96,47.49]
[1726057932426,2.717,132.07,131.94,47.49]
[1726057932934,2.717,132.07,131.98,47.49]
[1726057933129,1.325,132.07,131.98,47.49]
[1726057933324,47.49,132.12,132.0,47.49]
[1726057934138,2.6904,132.13,132.03,47.49]
[1726057934635,3.7854,132.08,132.03,47.49]
[1726057934835,2.6904,132.13,132.03,47.49]
[1726057935036,2.6904,132.13,132.0,47.49]
[1726057935229,3.7856,132.08,132.02,3.787]
[1726057935424,3.7856,132.08,132.0,47.49]
[1726057935631,2.6904,132.13,132.0,47.49]
[1726057936128,47.49,132.16,132.04,47.49]
[1726057937141,9.28850877,132.25,132.07,47.49]
[1726057937336,50.2034,132.24,132.11,47.49]
[1726057937632,50.2034,132.24,132.08,1.3358]
[1726057937633,2.7134,132.24,132.13,47.49]
[1726057937833,50.2034,132.24,132.13,47.49]
[1726057938223,3.7821,132.2,132.13,47.49]
[1726057938630,2.7134,132.24,132.13,47.49]
[1726057938828,47.49,132.26,132.15,47.49]
[1726057939341,3.782,132.2,132.15,47.49]
[1726057939540,3.782,132.2,132.13,51.2739]
[1726057939741,47.49,132.26,132.13,47.49]
[1726057939933,47.49,132.26,132.13,51.2737]
[1726057940139,47.49,132.26,132.13,47.49]
[1726057940430,47.49,132.26,132.13,51.2737]
[1726057940632,47.49,132.24,132.11,47.49]
[1726057940826,47.49,132.24,132.13,47.49]
[1726057941031,3.7825,132.19,132.13,47.49]
[1726057941225,47.49,132.24,132.13,47.49]
[1726057941426,47.49,132.24,132.09,1.2896]
[1726057941427,47.49,132.29,132.15,47.49]